[Event "Austria 2nd BL-Mitte 2024-25"]
[Site "Austria"]
[Date "2025.04.04"]
[Round "9.17"]
[White "Lentrodt, Thomas"]
[Black "Wegerer, Fred"]
[Result "1/2-1/2"]
[Annotator "ChessBase"]
[ECO "D53"]
[WhiteElo "2228"]
[BlackElo "2113"]
[PlyCount "178"]
[EventDate "2025.03.30"]
[EventType "team-tourn"]
[EventCountry "AUT"]
[SourceTitle "playchess.com"]
[Source "ChessBase"]
[SourceQuality "1"]
[TimeControl "40/5400+30:1800+30"]

1. d4 {[%emt 0:00:02]} Nf6 {[%emt 0:00:13]} 2. c4 {[%emt 0:00:07]} e6 {[%emt 0:00:21]} 3. Nf3 {[%emt 0:00:15]} Bb4+ {[%emt 0:00:18]} 4. Bd2 {[%emt 0:00:30]} Be7 {[%emt 0:01:12]} 5. Nc3 {[%emt 0:00:17]} d5 {[%emt 0:00:44]} 6. Bg5 {[%emt 0:02:15]} c6 {[%emt 0:03:28]} 7. e3 {[%emt 0:00:39]} Nbd7 {[%emt 0:00:31]} 8. Qc2 {[%emt 0:02:47]} h6 {[%emt 0:00:31]} 9. Bh4 {[%emt 0:01:35]} O-O {[%emt 0:00:54]} 10. Bd3 {[%emt 0:01:56]} a6 {[%emt 0:06:11]} 11. cxd5 {[%emt 0:08:51]} cxd5 {[%emt 0:00:28]} 12. a4 {[%emt 0:05:11]} b6 {[%emt 0:01:34]} 13. O-O {[%emt 0:00:25]} Bb7 {[%emt 0:00:08]} 14. Rfc1 {[%emt 0:02:35]} Re8 {[%emt 0:19:53]} 15. Na2 {[%emt 0:09:20]} Qb8 {[%emt 0:19:55]} 16. Qb3 {[%emt 0:05:57]} Qa7 {[%emt 0:03:32]} 17. Nb4 {[%emt 0:06:51]} Rac8 {[%emt 0:02:45]} 18. Bf1 {[%emt 0:04:56]} Bd6 {[%emt 0:03:06]} 19. Bg3 {[%emt 0:02:05]} Ne4 {[%emt 0:01:01]} 20. Bxd6 {[%emt 0:04:44]} Nxd6 {[%emt 0:00:03]} 21. Qd3 {[%emt 0:02:37]} Nb8 {[%emt 0:11:44]} 22. b3 {[%emt 0:10:18]} a5 {[%emt 0:00:27]} 23. Na2 {[%emt 0:00:31]} Ba6 {[%emt 0:00:05]} 24. Qd1 {[%emt 0:00:25]} Ne4 {[%emt 0:04:36]} 25. Bd3 {[%emt 0:07:58]} Bxd3 {[%emt 0:01:42]} 26. Qxd3 {[%emt 0:00:03]} Qa6 {[%emt 0:01:01]} 27. Ne5 {[%emt 0:05:06]} Qxd3 {[%emt 0:02:10]} 28. Nxd3 {[%emt 0:00:03]} Na6 {[%emt 0:01:50]} 29. f3 {[%emt 0:02:48]} Nd6 {[%emt 0:00:15]} 30. Kf2 {[%emt 0:01:28]} Kf8 {[%emt 0:01:15]} 31. Ne5 {[%emt 0:02:31]} Nb8 {[%emt 0:02:16]} 32. Ke2 {[%emt 0:01:55]} f6 {[%emt 0:00:18]} 33. Nd3 {[%emt 0:00:09]} Ke7 {[%emt 0:01:56]} 34. Rxc8 {[%emt 0:02:37]} Rxc8 {[%emt 0:00:05]} 35. Rc1 {[%emt 0:00:05]} Rxc1 {[%emt 0:01:28]} 36. Ndxc1 {[%emt 0:00:07]} Nc6 {[%emt 0:02:58]} 37. Nc3 {[%emt 0:01:55]} Kd7 {[%emt 0:00:26]} 38. Nd3 {[%emt 0:00:31]} Na7 {[%emt 0:02:50]} 39. e4 {[%emt 0:01:14]} Nc6 {[%emt 0:01:34]} 40. Ke3 {[%emt 0:00:25]} Ne7 {[%emt 0:02:26]} 41. Nf4 {[%emt 0:34:17]} g5 {[%emt 0:31:16]} 42. Nh5 {[%emt 0:01:53]} f5 {[%emt 0:01:03]} 43. g3 {[%emt 0:00:00]} fxe4 {[%emt 0:00:00]} 44. fxe4 {[%emt 0:00:00]} dxe4 {[%emt 0:00:00]} 45. Nf6+ {[%emt 0:00:00]} Kc6 {[%emt 0:00:00]} 46. Ncxe4 {[%emt 0:00:00]} Nf7 {[%emt 0:00:00]} 47. Kd3 {[%emt 0:00:00]} e5 {[%emt 0:00:00]} 48. g4 {[%emt 0:00:00]} exd4 {[%emt 0:00:00]} 49. Kxd4 {[%emt 0:00:00]} Ng6 {[%emt 0:00:00]} 50. Nf2 {[%emt 0:00:38]} b5 {[%emt 0:00:00]} 51. Nd3 {[%emt 0:00:38]} bxa4 {[%emt 0:00:00]} 52. bxa4 {[%emt 0:00:03]} Nh4 {[%emt 0:01:03]} 53. h3 {[%emt 0:01:06]} Nf3+ {[%emt 0:00:54]} 54. Ke4 {[%emt 0:01:47]} Nh4 {[%emt 0:00:59]} 55. Nh5 {[%emt 0:00:57]} Kd6 {[%emt 0:00:11]} 56. Ng3 {[%emt 0:00:19]} Ke6 {[%emt 0:00:43]} 57. Nc5+ {[%emt 0:00:20]} Kf6 {[%emt 0:00:26]} 58. Nb7 {[%emt 0:00:22]} Ke6 {[%emt 0:01:32]} 59. Nxa5 {[%emt 0:00:20]} Nd6+ {[%emt 0:00:12]} 60. Ke3 {[%emt 0:01:37]} Kd5 {[%emt 0:00:10]} 61. Ne2 {[%emt 0:00:23]} Ng2+ {[%emt 0:00:58]} 62. Kf2 {[%emt 0:00:12]} Nh4 {[%emt 0:00:18]} 63. Ng3 {[%emt 0:00:23]} Ng6 {[%emt 0:00:16]} 64. Nf5 {[%emt 0:01:15]} Ne4+ {[%emt 0:00:14]} 65. Kg2 {[%emt 0:00:25]} Nf4+ {[%emt 0:00:10]} 66. Kh2 {[%emt 0:00:03]} Nc5 {[%emt 0:01:13]} 67. Nxh6 {[%emt 0:00:11]} Nxa4 {[%emt 0:00:18]} 68. Nf7 {[%emt 0:00:19]} Ne6 {[%emt 0:00:07]} 69. Nb3 {[%emt 0:00:07]} Nc3 {[%emt 0:00:18]} 70. Nd2 {[%emt 0:00:19]} Ne4 {[%emt 0:01:09]} 71. Nxe4 {[%emt 0:02:35]} Kxe4 {[%emt 0:00:02]} 72. Kg3 {[%emt 0:00:06]} Ke3 {[%emt 0:00:14]} 73. Nd6 {[%emt 0:00:16]} Kd4 {[%emt 0:00:25]} 74. Kf3 {[%emt 0:00:18]} Ke5 {[%emt 0:00:36]} 75. Nc4+ {[%emt 0:00:11]} Kf6 {[%emt 0:00:12]} 76. Ke4 {[%emt 0:00:30]} Nc5+ {[%emt 0:00:26]} 77. Kf3 {[%emt 0:00:16]} Ne6 {[%emt 0:00:07]} 78. Nb2 {[%emt 0:01:04]} Nd4+ {[%emt 0:00:09]} 79. Ke4 {[%emt 0:00:11]} Ne6 {[%emt 0:00:16]} 80. Nd3 {[%emt 0:00:06]} Nf8 {[%emt 0:00:22]} 81. Nc5 {[%emt 0:00:51]} Ng6 {[%emt 0:00:18]} 82. Kd4 {[%emt 0:00:26]} Nf4 {[%emt 0:00:19]} 83. Ne4+ {[%emt 0:00:04]} Kg6 {[%emt 0:00:07]} 84. Nf2 {[%emt 0:00:05]} Kf6 {[%emt 0:00:19]} 85. Ke4 {[%emt 0:00:08]} Ne6 {[%emt 0:00:14]} 86. Nd3 {[%emt 0:00:14]} Nf8 {[%emt 0:00:49]} 87. Ne5 {[%emt 0:01:34]} Ne6 {[%emt 0:00:08]} 88. Nf3 {[%emt 0:00:38]} Nc5+ {[%emt 0:00:07]} 89. Ke3 {[%emt 0:00:36]} Ne6 {[%emt 0:00:06]} 1/2-1/2

[Event "Austria 2nd BL-Mitte 2024-25"]
[Site "Austria"]
[Date "2025.04.04"]
[Round "9.18"]
[White "Walzl, Martin"]
[Black "Schwabeneder, Alois"]
[Result "1/2-1/2"]
[Annotator "NA"]
[ECO "E17"]
[WhiteElo "2000"]
[BlackElo "1944"]
[PlyCount "59"]
[EventDate "2025.03.30"]
[EventType "team-tourn"]
[EventCountry "AUT"]
[SourceTitle "playchess.com"]
[Source "ChessBase"]
[SourceQuality "1"]
[TimeControl "40/5400+30:1800+30"]

1. Nf3 {[%emt 0:00:03]} Nf6 {[%emt 0:00:30]} 2. g3 {[%emt 0:01:21]} b6 {[%emt 0:02:41]} 3. Bg2 {[%emt 0:00:19]} Bb7 {[%emt 0:00:07]} 4. O-O {[%emt 0:00:27]} e6 {[%emt 0:00:43]} 5. c4 {[%emt 0:03:20]} Be7 {[%emt 0:00:21]} 6. b3 {[%emt 0:01:05]} O-O {[%emt 0:00:26]} 7. Bb2 {[%emt 0:00:12]} c5 {[%emt 0:02:45]} 8. d4 {[%emt 0:00:59]} d5 {[%emt 1:26:57]} 9. cxd5 {[%emt 0:22:05]} Bxd5 {[%emt 0:00:00]} 10. Nc3 {[%emt 0:03:08]} Bc6 {[%emt 0:00:00]} 11. Rc1 {[%emt 0:08:37]} Nbd7 {[%emt 0:00:00]} 12. Na4 {[%emt 0:15:24]} Rc8 {[%emt 0:00:00]} 13. dxc5 {[%emt 0:00:44]} Bxa4 {[%emt 0:00:00]} 14. bxa4 {[%emt 0:00:53]} Nxc5 {[%emt 0:00:00]} 15. Nd4 {[%emt 0:04:38]} Qd7 {[%emt 0:00:00]} 16. Nc6 {[%emt 0:06:53]} Nd5 {[%emt 0:00:00]} 17. Nxe7+ {[%emt 0:10:06]} Qxe7 {[%emt 0:00:00]} 18. Bxd5 {[%emt 0:00:15]} exd5 {[%emt 0:00:00]} 19. Qd4 {[%emt 0:00:30]} Ne6 {[%emt 0:00:00]} 20. Qxd5 {[%emt 0:00:41]} Rcd8 {[%emt 0:00:00]} 21. Qb3 {[%emt 0:03:13]} Rfe8 {[%emt 0:00:00]} 22. Rfd1 {[%emt 0:01:35]} Qb7 {[%emt 0:00:00]} 23. Rxd8 {[%emt 0:01:13]} Rxd8 {[%emt 0:00:00]} 24. Rd1 {[%emt 0:01:19]} Rc8 {[%emt 0:00:00]} 25. h4 {[%emt 0:00:31]} h6 {[%emt 0:00:00]} 26. Rc1 {[%emt 0:02:53]} Rd8 {[%emt 0:00:00]} 27. Rd1 {[%emt 0:00:47]} Rc8 {[%emt 0:00:00]} 28. Rc1 {[%emt 0:01:35]} Rd8 {[%emt 0:00:00]} 29. Rd1 {[%emt 0:07:00]} Rc8 {[%emt 0:00:00]} 30. Rc1 {[%emt 0:00:06]} 1/2-1/2

[Event "Austria 2nd BL-Mitte 2024-25"]
[Site "Austria"]
[Date "2025.04.04"]
[Round "9.19"]
[White "Felsberger, Alfred"]
[Black "Spalir, Jernej"]
[Result "1-0"]
[Annotator "RC"]
[ECO "C77"]
[WhiteElo "2320"]
[BlackElo "2356"]
[PlyCount "75"]
[EventDate "2025.03.30"]
[EventType "team-tourn"]
[EventCountry "AUT"]
[SourceTitle "playchess.com"]
[Source "ChessBase"]
[SourceQuality "1"]
[TimeControl "40/5400+30:1800+30"]

1. e4 {[%emt 0:00:06]} e5 {[%emt 0:00:19]} 2. Nf3 {[%emt 0:00:05]} Nc6 {[%emt 0:00:07]} 3. Bb5 {[%emt 0:00:04]} a6 {[%emt 0:00:16]} 4. Ba4 {[%emt 0:00:05]} Nf6 {[%emt 0:00:27]} 5. Nc3 {[%emt 0:00:08]} Bc5 {[%emt 0:01:39]} 6. O-O {[%emt 0:00:29]} b5 {[%emt 0:00:07]} 7. Bb3 {[%emt 0:00:05]} d6 {[%emt 0:00:06]} 8. Nd5 {[%emt 0:00:09]} O-O {[%emt 0:08:28]} 9. d3 {[%emt 0:19:06]} h6 {[%emt 0:13:00]} 10. c3 {[%emt 0:02:56]} Re8 {[%emt 0:06:33]} 11. a4 {[%emt 0:01:23]} Bb7 {[%emt 0:07:54]} 12. axb5 {[%emt 0:00:13]} axb5 {[%emt 0:00:07]} 13. Rxa8 {[%emt 0:00:06]} Bxa8 {[%emt 0:00:03]} 14. Bd2 {[%emt 0:07:57]} Nxd5 {[%emt 0:02:45]} 15. Bxd5 {[%emt 0:00:24]} Ne7 {[%emt 0:00:07]} 16. Bb3 {[%emt 0:16:26]} Ng6 {[%emt 0:03:51]} 17. g3 {[%emt 0:00:59]} d5 {[%emt 0:02:04]} 18. Qe2 {[%emt 0:00:04]} Bc6 {[%emt 0:03:26]} 19. h4 {[%emt 0:09:34]} dxe4 {[%emt 0:06:41]} 20. dxe4 {[%emt 0:00:03]} Qd7 {[%emt 0:00:10]} 21. Kh2 {[%emt 0:06:27]} Kh8 {[%emt 0:03:38]} 22. Bc1 {[%emt 0:21:33]} Qg4 {[%emt 0:11:01]} 23. Bc2 {[%emt 0:00:06]} Nxh4 {[%emt 0:06:09]} 24. gxh4 {[%emt 0:01:41]} Bd7 {[%emt 0:01:44]} 25. Kh1 {[%emt 0:02:19]} Re6 {[%emt 0:03:51]} 26. Rg1 {[%emt 0:00:40]} Qh5 {[%emt 0:00:30]} 27. Rg3 {[%emt 0:00:24]} Rf6 {[%emt 0:04:30]} 28. Bd1 {[%emt 0:01:54]} g5 {[%emt 0:00:54]} 29. Be3 {[%emt 0:06:50]} Bxe3 {[%emt 0:02:23]} 30. Qxe3 {[%emt 0:00:01]} gxh4 {[%emt 0:00:21]} 31. Rg2 {[%emt 0:00:31]} Bh3 {[%emt 0:01:26]} 32. Rg1 {[%emt 0:00:46]} Bg4 {[%emt 0:00:04]} 33. Qc5 {[%emt 0:00:40]} Bxf3+ {[%emt 0:07:53]} 34. Kh2 {[%emt 0:00:04]} Rd6 {[%emt 0:00:51]} 35. Bxf3 {[%emt 0:00:13]} Qxf3 {[%emt 0:00:19]} 36. Qxe5+ {[%emt 0:00:03]} Qf6 {[%emt 0:00:21]} 37. Qe8+ {[%emt 0:00:03]} Kh7 {[%emt 0:00:03]} 38. Qg8# {[%emt 0:00:03]} 1-0

[Event "Austria 2nd BL-Mitte 2024-25"]
[Site "Austria"]
[Date "2025.04.04"]
[Round "9.20"]
[White "Dotzer, Lukas"]
[Black "Weiss, Christian"]
[Result "1-0"]
[Annotator "RC"]
[ECO "B15"]
[WhiteElo "2453"]
[BlackElo "2360"]
[PlyCount "125"]
[EventDate "2025.03.30"]
[EventType "team-tourn"]
[EventCountry "AUT"]
[SourceTitle "playchess.com"]
[Source "ChessBase"]
[SourceQuality "1"]
[TimeControl "40/5400+30:1800+30"]

1. e4 {[%emt 0:00:02]} c6 {[%emt 0:00:07]} 2. Nc3 {[%emt 0:00:50]} d5 {[%emt 0:00:13]} 3. Nf3 {[%emt 0:00:05]} g6 {[%emt 0:01:50]} 4. d4 {[%emt 0:00:49]} Bg7 {[%emt 0:00:50]} 5. h3 {[%emt 0:00:21]} dxe4 {[%emt 0:07:44]} 6. Nxe4 {[%emt 0:00:07]} Nf6 {[%emt 0:00:10]} 7. Nxf6+ {[%emt 0:01:19]} exf6 {[%emt 0:00:04]} 8. Bd3 {[%emt 0:01:00]} O-O {[%emt 0:07:13]} 9. O-O {[%emt 0:00:08]} Be6 {[%emt 0:03:48]} 10. c4 {[%emt 0:03:40]} a5 {[%emt 0:03:46]} 11. Bf4 {[%emt 0:07:25]} Na6 {[%emt 0:04:28]} 12. Rc1 {[%emt 0:07:26]} Qb6 {[%emt 0:11:07]} 13. Qd2 {[%emt 0:04:49]} Rfd8 {[%emt 0:10:10]} 14. Be3 {[%emt 0:08:22]} c5 {[%emt 0:07:05]} 15. d5 {[%emt 0:06:20]} Bd7 {[%emt 0:00:07]} 16. Bf4 {[%emt 0:06:54]} Nc7 {[%emt 0:12:20]} 17. b3 {[%emt 0:07:55]} Ne8 {[%emt 0:01:04]} 18. a3 {[%emt 0:07:43]} Bf8 {[%emt 0:06:43]} 19. Rb1 {[%emt 0:03:06]} Bd6 {[%emt 0:04:36]} 20. Bh6 {[%emt 0:05:23]} Ng7 {[%emt 0:09:14]} 21. g4 {[%emt 0:03:51]} Re8 {[%emt 0:02:04]} 22. Qc3 {[%emt 0:02:45]} Bf8 {[%emt 0:00:07]} 23. Kh1 {[%emt 0:07:44]} Qd6 {[%emt 0:02:02]} 24. Qd2 {[%emt 0:03:36]} b5 {[%emt 0:01:08]} 25. Kg2 {[%emt 0:06:33]} a4 {[%emt 0:00:49]} 26. cxb5 {[%emt 0:03:00]} Qxd5 {[%emt 0:00:17]} 27. Bc4 {[%emt 0:00:50]} Qxd2 {[%emt 0:00:56]} 28. Bxd2 {[%emt 0:01:33]} Reb8 {[%emt 0:00:51]} 29. Bf4 {[%emt 0:00:24]} Rxb5 {[%emt 0:00:12]} 30. Bxb5 {[%emt 0:00:06]} Bxb5 {[%emt 0:00:04]} 31. Rfc1 {[%emt 0:00:54]} Ne6 {[%emt 0:00:16]} 32. Be3 {[%emt 0:00:18]} axb3 {[%emt 0:00:35]} 33. Rxb3 {[%emt 0:00:04]} Bc6 {[%emt 0:00:06]} 34. Rb6 {[%emt 0:01:27]} Be4 {[%emt 0:02:10]} 35. Rc4 {[%emt 0:00:33]} Bxf3+ {[%emt 0:00:45]} 36. Kxf3 {[%emt 0:00:05]} Rxa3 {[%emt 0:00:04]} 37. Rb8 {[%emt 0:00:53]} Kg7 {[%emt 0:00:26]} 38. Kg2 {[%emt 0:00:34]} Rd3 {[%emt 0:02:02]} 39. Ra4 {[%emt 0:00:26]} Rd7 {[%emt 0:01:37]} 40. Raa8 {[%emt 0:00:24]} h5 {[%emt 0:00:43]} 41. gxh5 {[%emt 0:02:59]} gxh5 {[%emt 0:01:38]} 42. Bc1 {[%emt 0:06:51]} Rd3 {[%emt 0:13:57]} 43. Ra7 {[%emt 0:06:08]} Nd8 {[%emt 0:07:51]} 44. Rc8 {[%emt 0:02:13]} Ne6 {[%emt 0:00:17]} 45. Ra4 {[%emt 0:04:22]} Kg6 {[%emt 0:03:10]} 46. Re4 {[%emt 0:02:27]} Bd6 {[%emt 0:03:52]} 47. Rh8 {[%emt 0:03:16]} f5 {[%emt 0:00:10]} 48. Rh6+ {[%emt 0:01:03]} Kg7 {[%emt 0:00:08]} 49. Re1 {[%emt 0:00:58]} Nf4+ {[%emt 0:02:24]} 50. Bxf4 {[%emt 0:00:06]} Bxf4 {[%emt 0:00:03]} 51. Rxh5 {[%emt 0:01:05]} Kf6 {[%emt 0:01:01]} 52. Rh8 {[%emt 0:04:42]} Rc3 {[%emt 0:01:29]} 53. Rc8 {[%emt 0:00:26]} Bd2 {[%emt 0:00:34]} 54. Rc6+ {[%emt 0:00:21]} Kg7 {[%emt 0:00:29]} 55. Re5 {[%emt 0:00:15]} c4 {[%emt 0:00:10]} 56. Rec5 {[%emt 0:00:55]} f4 {[%emt 0:00:24]} 57. Rxc4 {[%emt 0:00:10]} Rd3 {[%emt 0:00:02]} 58. R4c5 {[%emt 0:00:41]} Bb4 {[%emt 0:00:25]} 59. Rg5+ {[%emt 0:00:36]} Kf8 {[%emt 0:00:10]} 60. Rf5 {[%emt 0:00:28]} Bd6 {[%emt 0:00:06]} 61. Rb6 {[%emt 0:00:28]} f6 {[%emt 0:01:15]} 62. Rxf6+ {[%emt 0:00:12]} Ke7 {[%emt 0:00:04]} 63. Rfxd6 {[%emt 0:00:17]} 1-0

[Event "Austria 2nd BL-Mitte 2024-25"]
[Site "Austria"]
[Date "2025.04.04"]
[Round "9.21"]
[White "Ennsberger, Ulrich"]
[Black "Loescher, Leon"]
[Result "1-0"]
[Annotator "RC"]
[ECO "D38"]
[WhiteElo "2277"]
[BlackElo "2006"]
[PlyCount "49"]
[EventDate "2025.03.30"]
[EventType "team-tourn"]
[EventCountry "AUT"]
[SourceTitle "playchess.com"]
[Source "ChessBase"]
[SourceQuality "1"]
[TimeControl "40/5400+30:1800+30"]

1. c4 {[%emt 0:00:17]} Nf6 {[%emt 0:00:26]} 2. Nf3 {[%emt 0:00:33]} e6 {[%emt 0:00:36]} 3. d4 {[%emt 0:02:28]} d5 {[%emt 0:00:27]} 4. Nc3 {[%emt 0:00:53]} Bb4 {[%emt 0:01:49]} 5. Bg5 {[%emt 0:07:00]} Bxc3+ {[%emt 0:04:47]} 6. bxc3 {[%emt 0:00:14]} O-O {[%emt 0:00:39]} 7. e3 {[%emt 0:04:16]} b6 {[%emt 0:15:06]} 8. Bd3 {[%emt 0:01:54]} Bb7 {[%emt 0:02:28]} 9. cxd5 {[%emt 0:07:44]} exd5 {[%emt 0:01:00]} 10. Ne5 {[%emt 0:04:23]} h6 {[%emt 0:10:57]} 11. h4 {[%emt 0:05:48]} Qd6 {[%emt 0:12:23]} 12. Bxf6 {[%emt 0:15:23]} Qxf6 {[%emt 0:00:54]} 13. g4 {[%emt 0:00:05]} Re8 {[%emt 0:20:20]} 14. g5 {[%emt 0:03:54]} Qd6 {[%emt 0:10:02]} 15. Qf3 {[%emt 0:04:14]} Rxe5 {[%emt 0:04:28]} 16. dxe5 {[%emt 0:00:13]} Qxe5 {[%emt 0:00:22]} 17. Kd2 {[%emt 0:00:16]} Nd7 {[%emt 0:08:37]} 18. gxh6 {[%emt 0:01:56]} Nc5 {[%emt 0:02:49]} 19. Rhg1 {[%emt 0:06:01]} Ne4+ {[%emt 0:01:15]} 20. Bxe4 {[%emt 0:00:45]} dxe4 {[%emt 0:00:07]} 21. Qg3 {[%emt 0:05:30]} Qd5+ {[%emt 0:00:43]} 22. Ke1 {[%emt 0:02:08]} g6 {[%emt 0:00:30]} 23. Qg5 {[%emt 0:00:31]} Rd8 {[%emt 0:00:37]} 24. Qf6 {[%emt 0:01:40]} Ba6 {[%emt 0:00:35]} 25. Qg7# {[%emt 0:01:04]} 1-0

[Event "Austria 2nd BL-Mitte 2024-25"]
[Site "Austria"]
[Date "2025.04.04"]
[Round "9.22"]
[White "Pacher, Simon"]
[Black "Moser, Guenter"]
[Result "0-1"]
[Annotator "ChessBase"]
[ECO "B94"]
[WhiteElo "2060"]
[BlackElo "2201"]
[PlyCount "82"]
[EventDate "2025.03.30"]
[EventType "team-tourn"]
[EventCountry "AUT"]
[SourceTitle "playchess.com"]
[Source "ChessBase"]
[SourceQuality "1"]
[TimeControl "40/5400+30:1800+30"]

1. e4 {[%emt 0:00:08]} c5 {[%emt 0:00:20]} 2. Nf3 {[%emt 0:00:08]} d6 {[%emt 0:00:05]} 3. d4 {[%emt 0:00:14]} cxd4 {[%emt 0:00:03]} 4. Nxd4 {[%emt 0:00:08]} Nf6 {[%emt 0:00:05]} 5. Nc3 {[%emt 0:00:06]} a6 {[%emt 0:00:06]} 6. Bg5 {[%emt 0:00:41]} Nbd7 {[%emt 0:00:21]} 7. f4 {[%emt 0:01:03]} Qc7 {[%emt 0:00:44]} 8. Qe2 {[%emt 0:12:29]} e5 {[%emt 0:03:50]} 9. Nf5 {[%emt 0:05:30]} h6 {[%emt 0:04:53]} 10. Bh4 {[%emt 0:05:24]} exf4 {[%emt 0:02:25]} 11. Bxf6 {[%emt 0:03:02]} Nxf6 {[%emt 0:01:19]} 12. Nd5 {[%emt 0:00:19]} Nxd5 {[%emt 0:06:54]} 13. exd5+ {[%emt 0:00:06]} Kd8 {[%emt 0:04:26]} 14. Qe4 {[%emt 0:11:40]} Qd7 {[%emt 0:07:36]} 15. Bd3 {[%emt 0:04:36]} g6 {[%emt 0:09:18]} 16. Nd4 {[%emt 0:13:52]} Qe7 {[%emt 0:09:45]} 17. Qxe7+ {[%emt 0:04:37]} Bxe7 {[%emt 0:00:48]} 18. Ne2 {[%emt 0:03:48]} g5 {[%emt 0:02:56]} 19. g3 {[%emt 0:03:50]} f3 {[%emt 0:05:32]} 20. Nd4 {[%emt 0:00:25]} Bf6 {[%emt 0:00:40]} 21. Nxf3 {[%emt 0:02:22]} Bxb2 {[%emt 0:01:23]} 22. Rb1 {[%emt 0:00:01]} Bc3+ {[%emt 0:01:41]} 23. Kf2 {[%emt 0:04:39]} b5 {[%emt 0:07:56]} 24. Rhd1 {[%emt 0:07:07]} Re8 {[%emt 0:06:10]} 25. a3 {[%emt 0:01:19]} Bd7 {[%emt 0:02:05]} 26. h3 {[%emt 0:15:56]} Rc8 {[%emt 0:02:53]} 27. g4 {[%emt 0:00:00]} Rc5 {[%emt 0:00:26]} 28. Bh7 {[%emt 0:00:00]} Re7 {[%emt 0:04:35]} 29. Rd3 {[%emt 0:00:00]} Bg7 {[%emt 0:07:23]} 30. Rd2 {[%emt 0:00:00]} Kc7 {[%emt 0:00:54]} 31. Ng1 {[%emt 0:00:00]} Re5 {[%emt 0:01:38]} 32. Rbd1 {[%emt 0:00:00]} Rc3 {[%emt 0:00:15]} 33. Nf3 {[%emt 0:00:01]} Re8 {[%emt 0:00:37]} 34. a4 {[%emt 0:00:36]} bxa4 {[%emt 0:01:01]} 35. Re2 {[%emt 0:00:50]} Rxe2+ {[%emt 0:01:15]} 36. Kxe2 {[%emt 0:00:04]} Bb5+ {[%emt 0:00:36]} 37. Bd3 {[%emt 0:00:42]} Rxc2+ {[%emt 0:00:36]} 38. Ke3 {[%emt 0:00:35]} Rc3 {[%emt 0:00:24]} 39. Ke4 {[%emt 0:00:10]} Bxd3+ {[%emt 0:00:34]} 40. Rxd3 {[%emt 0:00:01]} Rxd3 {[%emt 0:00:02]} 41. Kxd3 {[%emt 0:30:02]} a3 {[%emt 0:30:28]} 0-1

[Event "Austria 2nd BL-Mitte 2024-25"]
[Site "Austria"]
[Date "2025.04.04"]
[Round "9.23"]
[White "Knoll, Hermann"]
[Black "Blasge, Tobias"]
[Result "1-0"]
[Annotator "ChessBase"]
[ECO "D02"]
[WhiteElo "2258"]
[BlackElo "2015"]
[PlyCount "93"]
[EventDate "2025.03.30"]
[EventType "team-tourn"]
[EventCountry "AUT"]
[SourceTitle "playchess.com"]
[Source "ChessBase"]
[SourceQuality "1"]
[TimeControl "40/5400+30:1800+30"]

1. d4 {[%emt 0:00:04]} d5 {[%emt 0:00:15]} 2. Nf3 {[%emt 0:00:07]} Nc6 {[%emt 0:00:24]} 3. Bg5 {[%emt 0:00:33]} Bg4 {[%emt 0:03:51]} 4. Nbd2 {[%emt 0:00:08]} Nf6 {[%emt 0:06:16]} 5. Bxf6 {[%emt 0:00:22]} gxf6 {[%emt 0:00:31]} 6. c3 {[%emt 0:00:57]} e5 {[%emt 0:13:00]} 7. e3 {[%emt 0:04:40]} Qd6 {[%emt 0:09:39]} 8. Qa4 {[%emt 0:03:59]} Bd7 {[%emt 0:15:55]} 9. Qc2 {[%emt 0:01:21]} O-O-O {[%emt 0:08:55]} 10. Nb3 {[%emt 0:01:26]} Qe6 {[%emt 0:02:49]} 11. O-O-O {[%emt 0:00:45]} Qf5 {[%emt 0:03:25]} 12. Qxf5 {[%emt 0:03:20]} Bxf5 {[%emt 0:00:04]} 13. Nh4 {[%emt 0:00:34]} Be6 {[%emt 0:02:58]} 14. f4 {[%emt 0:02:04]} Bh6 {[%emt 0:07:09]} 15. g3 {[%emt 0:00:09]} e4 {[%emt 0:01:12]} 16. Be2 {[%emt 0:00:43]} f5 {[%emt 0:01:49]} 17. Rhg1 {[%emt 0:02:08]} Ne7 {[%emt 0:01:00]} 18. g4 {[%emt 0:00:45]} fxg4 {[%emt 0:08:48]} 19. Bxg4 {[%emt 0:01:21]} Bxg4 {[%emt 0:01:32]} 20. Rxg4 {[%emt 0:00:08]} Rhg8 {[%emt 0:00:04]} 21. Rdg1 {[%emt 0:00:38]} Rxg4 {[%emt 0:00:20]} 22. Rxg4 {[%emt 0:00:04]} Rg8 {[%emt 0:00:05]} 23. h3 {[%emt 0:01:21]} b6 {[%emt 0:03:24]} 24. Nd2 {[%emt 0:00:05]} Kd7 {[%emt 0:02:38]} 25. Nf1 {[%emt 0:00:17]} Ke6 {[%emt 0:04:11]} 26. Ng3 {[%emt 0:00:29]} Rxg4 {[%emt 0:00:51]} 27. hxg4 {[%emt 0:00:02]} f6 {[%emt 0:00:29]} 28. Kd2 {[%emt 0:01:19]} Kf7 {[%emt 0:01:02]} 29. c4 {[%emt 0:01:25]} c6 {[%emt 0:00:04]} 30. Kc3 {[%emt 0:00:08]} Bf8 {[%emt 0:01:31]} 31. b3 {[%emt 0:01:34]} Ke6 {[%emt 0:00:14]} 32. f5+ {[%emt 0:00:53]} Kf7 {[%emt 0:00:31]} 33. Nh5 {[%emt 0:00:13]} Bh6 {[%emt 0:00:57]} 34. Ng2 {[%emt 0:00:06]} Ng8 {[%emt 0:00:53]} 35. cxd5 {[%emt 0:01:04]} cxd5 {[%emt 0:00:21]} 36. Nhf4 {[%emt 0:00:55]} Bxf4 {[%emt 0:00:16]} 37. exf4 {[%emt 0:00:05]} Ke7 {[%emt 0:00:36]} 38. Ne3 {[%emt 0:00:28]} Kd6 {[%emt 0:00:07]} 39. g5 {[%emt 0:00:06]} h5 {[%emt 0:01:21]} 40. Kd2 {[%emt 0:00:12]} a5 {[%emt 0:00:29]} 41. Ke2 {[%emt 0:30:05]} Ne7 {[%emt 0:30:28]} 42. g6 {[%emt 0:03:40]} Ng8 {[%emt 0:00:00]} 43. Kf2 {[%emt 0:00:00]} Nh6 {[%emt 0:00:00]} 44. Kg3 {[%emt 0:00:00]} Ke7 {[%emt 0:00:00]} 45. Nxd5+ {[%emt 0:00:00]} Kf8 {[%emt 0:00:00]} 46. Ne3 {[%emt 0:00:00]} b5 {[%emt 0:00:00]} 47. Kh4 {[%emt 0:00:00]} 1-0

[Event "Austria 2nd BL-Mitte 2024-25"]
[Site "Austria"]
[Date "2025.04.04"]
[Round "9.24"]
[White "Tscharnuter, Hannes"]
[Black "Simon, Christopher"]
[Result "1-0"]
[Annotator "NA"]
[ECO "B07"]
[WhiteElo "1984"]
[BlackElo "1968"]
[PlyCount "57"]
[EventDate "2025.03.30"]
[EventType "team-tourn"]
[EventCountry "AUT"]
[SourceTitle "playchess.com"]
[Source "ChessBase"]
[SourceQuality "1"]
[TimeControl "40/5400+30:1800+30"]

1. e4 {[%emt 0:00:07]} g6 {[%emt 0:00:21]} 2. d4 {[%emt 0:00:42]} Bg7 {[%emt 0:00:29]} 3. Nc3 {[%emt 0:01:10]} d6 {[%emt 0:00:32]} 4. Be2 {[%emt 0:01:27]} Nf6 {[%emt 0:01:25]} 5. g4 {[%emt 0:01:51]} d5 {[%emt 0:11:47]} 6. e5 {[%emt 0:02:35]} Ne4 {[%emt 0:00:21]} 7. Qd3 {[%emt 0:07:00]} c5 {[%emt 0:07:38]} 8. Nxe4 {[%emt 0:08:16]} dxe4 {[%emt 0:01:34]} 9. Qxe4 {[%emt 0:01:48]} cxd4 {[%emt 0:01:11]} 10. Bd2 {[%emt 0:08:57]} Nc6 {[%emt 0:01:58]} 11. f4 {[%emt 0:01:35]} Be6 {[%emt 0:04:37]} 12. Bf3 {[%emt 0:06:46]} Qb6 {[%emt 0:11:13]} 13. Nh3 {[%emt 0:09:35]} Rd8 {[%emt 0:04:06]} 14. Qd3 {[%emt 0:09:46]} Nb4 {[%emt 0:29:44]} 15. Bxb4 {[%emt 0:07:42]} Qxb4+ {[%emt 0:00:13]} 16. Qd2 {[%emt 0:04:11]} Qxb2 {[%emt 0:04:59]} 17. O-O {[%emt 0:02:28]} Qb6 {[%emt 0:01:32]} 18. Rab1 {[%emt 0:03:10]} Qc5 {[%emt 0:00:35]} 19. Rxb7 {[%emt 0:00:54]} d3+ {[%emt 0:00:42]} 20. Rf2 {[%emt 0:00:46]} h5 {[%emt 0:08:28]} 21. Ng5 {[%emt 0:02:30]} Bc8 {[%emt 0:00:12]} 22. Rb3 {[%emt 0:07:23]} hxg4 {[%emt 0:03:59]} 23. Be4 {[%emt 0:01:53]} dxc2 {[%emt 0:01:45]} 24. Qxc2 {[%emt 0:00:28]} Qa5 {[%emt 0:00:43]} 25. Bxg6 {[%emt 0:03:53]} Ba6 {[%emt 0:01:35]} 26. Bxf7+ {[%emt 0:02:37]} Kf8 {[%emt 0:00:10]} 27. Bc4 {[%emt 0:00:09]} Bxc4 {[%emt 0:01:28]} 28. Qxc4 {[%emt 0:00:10]} Qe1+ {[%emt 0:00:36]} 29. Rf1 {[%emt 0:00:42]} 1-0